[Event "Early-Titled-Tuesday-Blitz-February-13-2024"]
[Site "Chess.com"]
[Date "2024.02.13"]
[Round "9"]
[White "Louis-Paulsen-Fan"]
[Black "Ariadna_Atreides"]
[Result "1-0"]
[WhiteElo "2269"]
[BlackElo "2146"]
[TimeControl "180+1"]
[EndTime "9:47:18 PST"]
[Termination "Louis-Paulsen-Fan won on time"]

1. d4 {[%clk 0:02:56.1]} 1... Nf6 {[%clk 0:02:58.8]} 2. Nf3 {[%clk 0:02:55.3]}
2... e6 {[%clk 0:02:57.5]} 3. c4 {[%clk 0:02:55.8]} 3... c5 {[%clk 0:02:57.8]}
4. d5 {[%clk 0:02:54.9]} 4... exd5 {[%clk 0:02:57.2]} 5. cxd5 {[%clk 0:02:55.8]}
5... d6 {[%clk 0:02:56.9]} 6. Nc3 {[%clk 0:02:56.3]} 6... g6 {[%clk 0:02:52.8]}
7. e4 {[%clk 0:02:56]} 7... Bg4 {[%clk 0:02:50.3]} 8. Be2 {[%clk 0:02:56]} 8...
a6 {[%clk 0:02:49.6]} 9. a4 {[%clk 0:02:55.5]} 9... Bg7 {[%clk 0:02:48.9]} 10.
Bg5 {[%clk 0:02:53.9]} 10... h6 {[%clk 0:02:43.2]} 11. Bh4 {[%clk 0:02:53.6]}
11... O-O {[%clk 0:02:36.2]} 12. Nd2 {[%clk 0:02:52.8]} 12... Bxe2 {[%clk
0:02:33.7]} 13. Qxe2 {[%clk 0:02:53.7]} 13... Re8 {[%clk 0:02:25.1]} 14. O-O
{[%clk 0:02:53.8]} 14... Nbd7 {[%clk 0:01:57.2]} 15. h3 {[%clk 0:02:24.9]} 15...
Qc7 {[%clk 0:01:17.9]} 16. Bg3 {[%clk 0:02:09.1]} 16... Nh5 {[%clk 0:01:01.5]}
17. Bh2 {[%clk 0:02:05]} 17... f5 {[%clk 0:00:59]} 18. Nc4 {[%clk 0:01:33]}
18... Ne5 {[%clk 0:00:48]} 19. exf5 {[%clk 0:01:29.4]} 19... Nxc4 {[%clk
0:00:35.3]} 20. Qxc4 {[%clk 0:01:30.3]} 20... gxf5 {[%clk 0:00:33.5]} 21. Rfe1
{[%clk 0:01:17.1]} 21... Rf8 {[%clk 0:00:17.2]} 22. Re6 {[%clk 0:01:12.4]} 22...
f4 {[%clk 0:00:16.3]} 23. Rae1 {[%clk 0:01:06.9]} 23... Rad8 {[%clk 0:00:12.2]}
24. Qe4 {[%clk 0:01:02.5]} 24... Rd7 {[%clk 0:00:10.3]} 25. Qg6 {[%clk
0:00:58.3]} 25... Nf6 {[%clk 0:00:05.5]} 26. Bxf4 {[%clk 0:00:58.4]} 26... h5
{[%clk 0:00:02.8]} 27. Bg5 {[%clk 0:00:55.2]} 1-0

[Event "Early-Titled-Tuesday-Blitz-February-13-2024"]
[Site "Chess.com"]
[Date "2024.02.13"]
[Round "9"]
[White "BeardedNM"]
[Black "stratacticos"]
[Result "0-1"]
[WhiteElo "2174"]
[BlackElo "1968"]
[TimeControl "180+1"]
[EndTime "9:47:21 PST"]
[Termination "stratacticos won by checkmate"]

1. e4 {[%clk 0:02:57.5]} 1... c5 {[%clk 0:02:59]} 2. Nf3 {[%clk 0:02:57.5]} 2...
Nc6 {[%clk 0:02:58.8]} 3. d4 {[%clk 0:02:57.3]} 3... cxd4 {[%clk 0:02:58.7]} 4.
Nxd4 {[%clk 0:02:58.2]} 4... Nf6 {[%clk 0:02:58.4]} 5. Nc3 {[%clk 0:02:58.6]}
5... e5 {[%clk 0:02:58.3]} 6. Ndb5 {[%clk 0:02:59.2]} 6... d6 {[%clk 0:02:57.7]}
7. Bg5 {[%clk 0:02:59.4]} 7... a6 {[%clk 0:02:55.3]} 8. Bxf6 {[%clk 0:02:59.6]}
8... gxf6 {[%clk 0:02:54.9]} 9. Na3 {[%clk 0:03:00]} 9... b5 {[%clk 0:02:54.8]}
10. Nd5 {[%clk 0:03:00.2]} 10... Bg7 {[%clk 0:02:54.3]} 11. Bd3 {[%clk
0:02:59.8]} 11... Na5 {[%clk 0:02:53.6]} 12. O-O {[%clk 0:02:50.7]} 12... Be6
{[%clk 0:02:50.7]} 13. Qh5 {[%clk 0:02:38.4]} 13... O-O {[%clk 0:02:48.6]} 14.
f4 {[%clk 0:02:33.4]} 14... Rc8 {[%clk 0:02:42.1]} 15. Rf3 {[%clk 0:02:24.4]}
15... b4 {[%clk 0:02:38]} 16. Rg3 {[%clk 0:01:48.9]} 16... Kh8 {[%clk
0:02:30.9]} 17. Nb1 {[%clk 0:01:30.1]} 17... Nc4 {[%clk 0:02:24.8]} 18. f5
{[%clk 0:01:07]} 18... Bxd5 {[%clk 0:02:23.5]} 19. exd5 {[%clk 0:00:51.9]} 19...
Qb6+ {[%clk 0:02:10.4]} 20. Kh1 {[%clk 0:00:51.8]} 20... Qf2 {[%clk 0:02:09.1]}
21. Qd1 {[%clk 0:00:41.8]} 21... Nxb2 {[%clk 0:02:01.5]} 22. Qc1 {[%clk
0:00:41.4]} 22... Nxd3 {[%clk 0:01:59.9]} 23. Rxd3 {[%clk 0:00:34.8]} 23... Bh6
{[%clk 0:01:57.4]} 24. Qd1 {[%clk 0:00:29.7]} 24... Rxc2 {[%clk 0:01:55.2]} 25.
Rg3 {[%clk 0:00:29.2]} 25... Rg8 {[%clk 0:01:49.3]} 26. Rxg8+ {[%clk 0:00:17.9]}
26... Kxg8 {[%clk 0:01:48.5]} 27. Qg4+ {[%clk 0:00:18.8]} 27... Bg5 {[%clk
0:01:45]} 28. h4 {[%clk 0:00:19.2]} 28... Rc1+ {[%clk 0:01:39.7]} 29. Kh2 {[%clk
0:00:18.8]} 29... Qg1+ {[%clk 0:01:39.3]} 30. Kg3 {[%clk 0:00:16.2]} 30... Qe1+
{[%clk 0:01:37.2]} 31. Kh3 {[%clk 0:00:16.1]} 31... Qe3+ {[%clk 0:01:24.5]} 32.
g3 {[%clk 0:00:16.2]} 32... Rh1+ {[%clk 0:01:21]} 33. Kg2 {[%clk 0:00:16.4]}
33... Rg1+ {[%clk 0:01:12.2]} 34. Kh3 {[%clk 0:00:16.7]} 34... h5 {[%clk
0:01:02.9]} 35. Qxh5 {[%clk 0:00:11.5]} 35... Qxg3# {[%clk 0:01:01.9]} 0-1

[Event "Early-Titled-Tuesday-Blitz-February-13-2024"]
[Site "Chess.com"]
[Date "2024.02.13"]
[Round "9"]
[White "UnTucopalaTimba"]
[Black "saraswathii"]
[Result "0-1"]
[WhiteElo "1993"]
[BlackElo "2382"]
[TimeControl "180+1"]
[EndTime "9:47:26 PST"]
[Termination "saraswathii won by resignation"]

1. e4 {[%clk 0:02:59.1]} 1... c5 {[%clk 0:02:58.5]} 2. Nf3 {[%clk 0:02:58.9]}
2... e6 {[%clk 0:02:58.5]} 3. d4 {[%clk 0:02:58]} 3... cxd4 {[%clk 0:02:59.4]}
4. Nxd4 {[%clk 0:02:57.2]} 4... Nf6 {[%clk 0:02:57]} 5. e5 {[%clk 0:02:51.1]}
5... Qa5+ {[%clk 0:02:56.3]} 6. Nc3 {[%clk 0:02:48.7]} 6... Qxe5+ {[%clk
0:02:56.4]} 7. Be2 {[%clk 0:02:46.6]} 7... Bb4 {[%clk 0:02:55.4]} 8. O-O {[%clk
0:02:42.5]} 8... Nc6 {[%clk 0:02:50.1]} 9. Nf3 {[%clk 0:02:40.4]} 9... Qb8
{[%clk 0:02:48.4]} 10. Bd2 {[%clk 0:02:35.4]} 10... d5 {[%clk 0:02:46.5]} 11. a3
{[%clk 0:02:34.2]} 11... Bd6 {[%clk 0:02:43.2]} 12. Nb5 {[%clk 0:02:31.4]} 12...
Bf4 {[%clk 0:02:42.3]} 13. Bc3 {[%clk 0:02:26.5]} 13... Ne4 {[%clk 0:02:31.6]}
14. Nbd4 {[%clk 0:02:13.1]} 14... Nxc3 {[%clk 0:02:19.3]} 15. bxc3 {[%clk
0:02:11.8]} 15... O-O {[%clk 0:02:15.8]} 16. Nxc6 {[%clk 0:02:09.8]} 16... bxc6
{[%clk 0:02:15.4]} 17. Qd4 {[%clk 0:02:09.4]} 17... e5 {[%clk 0:02:13.6]} 18.
Qa4 {[%clk 0:02:05]} 18... Qc7 {[%clk 0:02:04.7]} 19. g3 {[%clk 0:02:01.3]}
19... Bh6 {[%clk 0:02:03.3]} 20. c4 {[%clk 0:01:55.8]} 20... e4 {[%clk
0:01:54.3]} 21. Nd4 {[%clk 0:01:50.2]} 21... Bd7 {[%clk 0:01:51.5]} 22. c5
{[%clk 0:01:39.1]} 22... Bg5 {[%clk 0:01:47.8]} 23. c4 {[%clk 0:01:35.5]} 23...
Rac8 {[%clk 0:01:42.6]} 24. Rad1 {[%clk 0:01:28.6]} 24... Bh3 {[%clk 0:01:34.9]}
25. Rfe1 {[%clk 0:01:26.7]} 25... Rfd8 {[%clk 0:01:24.6]} 26. Qc2 {[%clk
0:01:20.2]} 26... Qa5 {[%clk 0:01:20.2]} 27. cxd5 {[%clk 0:01:15.9]} 27... cxd5
{[%clk 0:01:19.1]} 28. c6 {[%clk 0:01:11.3]} 28... Bf6 {[%clk 0:01:14.7]} 29.
Nb5 {[%clk 0:01:03.3]} 29... a6 {[%clk 0:01:09.5]} 30. c7 {[%clk 0:01:00.3]}
30... Rd7 {[%clk 0:01:04.4]} 31. Qc6 {[%clk 0:00:51.9]} 31... axb5 {[%clk
0:01:01.2]} 32. Bxb5 {[%clk 0:00:47.5]} 32... Rcxc7 {[%clk 0:00:52.3]} 33. Rc1
{[%clk 0:00:33.3]} 33... Rxc6 {[%clk 0:00:50.8]} 34. Bxc6 {[%clk 0:00:32.1]}
34... Rc7 {[%clk 0:00:49.6]} 0-1

[Event "Early-Titled-Tuesday-Blitz-February-13-2024"]
[Site "Chess.com"]
[Date "2024.02.13"]
[Round "9"]
[White "Vigg-Sama"]
[Black "Nellichka"]
[Result "0-1"]
[WhiteElo "2241"]
[BlackElo "2085"]
[TimeControl "180+1"]
[EndTime "9:47:28 PST"]
[Termination "Nellichka won by resignation"]

1. d4 {[%clk 0:02:59.6]} 1... Nf6 {[%clk 0:02:58.3]} 2. c4 {[%clk 0:02:55.8]}
2... c5 {[%clk 0:02:57.7]} 3. d5 {[%clk 0:02:55.3]} 3... b5 {[%clk 0:02:57.1]}
4. cxb5 {[%clk 0:02:56.2]} 4... a6 {[%clk 0:02:56.7]} 5. bxa6 {[%clk 0:02:57.1]}
5... g6 {[%clk 0:02:54.6]} 6. g3 {[%clk 0:02:55.6]} 6... Bg7 {[%clk 0:02:51.1]}
7. Nc3 {[%clk 0:02:54.9]} 7... Bxa6 {[%clk 0:02:46.3]} 8. e4 {[%clk 0:02:54.7]}
8... Bxf1 {[%clk 0:02:44.9]} 9. Kxf1 {[%clk 0:02:55.6]} 9... d6 {[%clk
0:02:44.7]} 10. Nf3 {[%clk 0:02:45.8]} 10... O-O {[%clk 0:02:43.8]} 11. Kg2
{[%clk 0:02:44.6]} 11... Qa5 {[%clk 0:02:42.6]} 12. a4 {[%clk 0:02:40.9]} 12...
Nbd7 {[%clk 0:02:28.4]} 13. Bd2 {[%clk 0:02:32.2]} 13... Qb4 {[%clk 0:02:23.1]}
14. Qc2 {[%clk 0:02:27.2]} 14... Rfb8 {[%clk 0:02:21.7]} 15. Rhb1 {[%clk
0:02:10.3]} 15... c4 {[%clk 0:02:20]} 16. Nb5 {[%clk 0:02:02.8]} 16... Qb3
{[%clk 0:02:15.7]} 17. Qxb3 {[%clk 0:02:02]} 17... cxb3 {[%clk 0:02:15]} 18. Nc3
{[%clk 0:02:02.1]} 18... Rb4 {[%clk 0:02:07.7]} 19. Re1 {[%clk 0:01:54.5]} 19...
Nc5 {[%clk 0:02:07]} 20. a5 {[%clk 0:01:28.3]} 20... Nd3 {[%clk 0:01:59.9]} 21.
Re2 {[%clk 0:01:14.6]} 21... Nxb2 {[%clk 0:01:52.9]} 22. a6 {[%clk 0:01:00.8]}
22... Nc4 {[%clk 0:01:46.2]} 23. Be1 {[%clk 0:01:00.8]} 23... b2 {[%clk
0:01:35.6]} 24. Rb1 {[%clk 0:01:00.4]} 24... Nd7 {[%clk 0:01:35.5]} 25. Nd1
{[%clk 0:00:53.8]} 25... Rb3 {[%clk 0:01:34.5]} 26. Nd2 {[%clk 0:00:50.2]} 26...
Nxd2 {[%clk 0:01:31.1]} 27. Rxd2 {[%clk 0:00:45.2]} 27... Rxa6 {[%clk
0:01:25.8]} 28. Rc2 {[%clk 0:00:35.3]} 28... Nc5 {[%clk 0:01:18.1]} 29. Bc3
{[%clk 0:00:23.9]} 29... Bxc3 {[%clk 0:01:11.2]} 30. Nxc3 {[%clk 0:00:24.8]}
30... Nd3 {[%clk 0:00:49.3]} 31. Nd1 {[%clk 0:00:18.2]} 31... Ne1+ {[%clk
0:00:47]} 0-1

[Event "Early-Titled-Tuesday-Blitz-February-13-2024"]
[Site "Chess.com"]
[Date "2024.02.13"]
[Round "9"]
[White "IMRosen"]
[Black "treadstone_71"]
[Result "1-0"]
[WhiteElo "2655"]
[BlackElo "2318"]
[TimeControl "180+1"]
[EndTime "9:47:35 PST"]
[Termination "IMRosen won on time"]

1. e4 {[%clk 0:03:00.9]} 1... c5 {[%clk 0:02:59.2]} 2. Nc3 {[%clk 0:02:58.3]}
2... Nc6 {[%clk 0:02:58.9]} 3. Bb5 {[%clk 0:02:58.6]} 3... g6 {[%clk 0:02:58.7]}
4. Bxc6 {[%clk 0:02:58.3]} 4... bxc6 {[%clk 0:02:59.6]} 5. d3 {[%clk 0:02:58.4]}
5... Bg7 {[%clk 0:02:59.8]} 6. f4 {[%clk 0:02:59.1]} 6... d6 {[%clk 0:02:41.8]}
7. Nf3 {[%clk 0:02:59]} 7... e6 {[%clk 0:02:41.2]} 8. O-O {[%clk 0:02:59.5]}
8... Ne7 {[%clk 0:02:38.4]} 9. Qe1 {[%clk 0:03:00]} 9... O-O {[%clk 0:02:38.4]}
10. Qh4 {[%clk 0:02:56.3]} 10... Ba6 {[%clk 0:02:20.2]} 11. Rb1 {[%clk
0:02:39.8]} 11... Nc8 {[%clk 0:02:03.9]} 12. Qh3 {[%clk 0:02:37.2]} 12... Rb8
{[%clk 0:01:58.8]} 13. Bd2 {[%clk 0:02:33.7]} 13... c4 {[%clk 0:01:53.9]} 14. d4
{[%clk 0:02:32]} 14... c5 {[%clk 0:01:49.1]} 15. dxc5 {[%clk 0:02:20]} 15...
dxc5 {[%clk 0:01:50]} 16. Be3 {[%clk 0:02:20]} 16... Qa5 {[%clk 0:01:44]} 17. e5
{[%clk 0:02:05]} 17... Bb7 {[%clk 0:01:24.1]} 18. Bd2 {[%clk 0:01:50.4]} 18...
Rd8 {[%clk 0:00:57.1]} 19. Nd5 {[%clk 0:01:27.1]} 19... Qb5 {[%clk 0:00:25.9]}
20. Nf6+ {[%clk 0:01:24.3]} 20... Bxf6 {[%clk 0:00:26.3]} 21. exf6 {[%clk
0:01:25.2]} 21... Qe8 {[%clk 0:00:26.5]} 22. Be3 {[%clk 0:00:59.5]} 22... Nd6
{[%clk 0:00:17.8]} 23. Bxc5 {[%clk 0:00:40.6]} 23... Ne4 {[%clk 0:00:17.9]} 24.
Be7 {[%clk 0:00:31.5]} 24... Rd2 {[%clk 0:00:03]} 25. Qh6 {[%clk 0:00:27.9]} 1-0

[Event "Early-Titled-Tuesday-Blitz-February-13-2024"]
[Site "Chess.com"]
[Date "2024.02.13"]
[Round "9"]
[White "LileKoridze"]
[Black "dealshark"]
[Result "0-1"]
[WhiteElo "2410"]
[BlackElo "2357"]
[TimeControl "180+1"]
[EndTime "9:47:39 PST"]
[Termination "dealshark won by resignation"]

1. d4 {[%clk 0:03:00.9]} 1... Nf6 {[%clk 0:02:59.2]} 2. c4 {[%clk 0:03:00.7]}
2... e6 {[%clk 0:02:59.2]} 3. Nf3 {[%clk 0:03:00.7]} 3... d5 {[%clk 0:02:58.9]}
4. g3 {[%clk 0:03:00.9]} 4... Be7 {[%clk 0:02:58.3]} 5. Bg2 {[%clk 0:03:00.8]}
5... O-O {[%clk 0:02:59.1]} 6. O-O {[%clk 0:03:00.5]} 6... c6 {[%clk 0:02:59.5]}
7. Qc2 {[%clk 0:03:00.2]} 7... Nbd7 {[%clk 0:02:59.7]} 8. Rd1 {[%clk 0:03:00.4]}
8... Ne4 {[%clk 0:02:59.2]} 9. b3 {[%clk 0:02:58.6]} 9... b6 {[%clk 0:02:52]}
10. Bb2 {[%clk 0:02:57.7]} 10... Bb7 {[%clk 0:02:50.9]} 11. Nfd2 {[%clk
0:02:55]} 11... Nxd2 {[%clk 0:02:40.7]} 12. Nxd2 {[%clk 0:02:54.7]} 12... Rc8
{[%clk 0:02:40]} 13. e4 {[%clk 0:02:54.9]} 13... dxe4 {[%clk 0:02:33.3]} 14.
Nxe4 {[%clk 0:02:55]} 14... Nf6 {[%clk 0:02:31.8]} 15. a3 {[%clk 0:02:24.3]}
15... Qc7 {[%clk 0:02:30.5]} 16. b4 {[%clk 0:02:07.9]} 16... Rfd8 {[%clk
0:02:23.2]} 17. c5 {[%clk 0:02:04.1]} 17... Nd5 {[%clk 0:01:59.4]} 18. Rac1
{[%clk 0:02:01.3]} 18... Qd7 {[%clk 0:01:53.2]} 19. Nd2 {[%clk 0:01:54.6]} 19...
Bf6 {[%clk 0:01:50]} 20. Nc4 {[%clk 0:01:53.5]} 20... Ba6 {[%clk 0:01:31]} 21.
Nd6 {[%clk 0:00:57.4]} 21... Rc7 {[%clk 0:01:29.9]} 22. Qb3 {[%clk 0:00:56.3]}
22... Be7 {[%clk 0:01:21.1]} 23. Nc4 {[%clk 0:00:54.8]} 23... Bxc4 {[%clk
0:01:20.5]} 24. Qxc4 {[%clk 0:00:54.5]} 24... b5 {[%clk 0:01:20.8]} 25. Qb3
{[%clk 0:00:54.8]} 25... Bf6 {[%clk 0:01:21]} 26. Re1 {[%clk 0:00:53.6]} 26...
Ra8 {[%clk 0:01:16.5]} 27. Ra1 {[%clk 0:00:52.6]} 27... a5 {[%clk 0:01:16.5]}
28. Bc3 {[%clk 0:00:46.3]} 28... Nxc3 {[%clk 0:01:13.6]} 29. Qxc3 {[%clk
0:00:46.6]} 29... Bxd4 {[%clk 0:01:12]} 30. Qf3 {[%clk 0:00:45.3]} 30... Bxa1
{[%clk 0:01:11.1]} 31. Rxa1 {[%clk 0:00:46.2]} 31... Rd8 {[%clk 0:01:10.5]} 32.
h3 {[%clk 0:00:45.7]} 32... Qc8 {[%clk 0:01:07.5]} 33. Qf4 {[%clk 0:00:44.3]}
33... Rcd7 {[%clk 0:01:03.8]} 34. Kh2 {[%clk 0:00:43.2]} 34... Rd1 {[%clk
0:01:02.6]} 35. Ra2 {[%clk 0:00:43.1]} 35... a4 {[%clk 0:00:58.6]} 36. Qf3
{[%clk 0:00:40.5]} 36... R1d2 {[%clk 0:00:53.2]} 37. Rxd2 {[%clk 0:00:38.9]}
37... Rxd2 {[%clk 0:00:53.2]} 38. Qxc6 {[%clk 0:00:39.3]} 38... Qxc6 {[%clk
0:00:53]} 39. Bxc6 {[%clk 0:00:40.2]} 39... Rxf2+ {[%clk 0:00:53.3]} 40. Kg1
{[%clk 0:00:40.5]} 40... Ra2 {[%clk 0:00:53.8]} 41. Bxb5 {[%clk 0:00:40.9]}
41... Rxa3 {[%clk 0:00:54.3]} 42. c6 {[%clk 0:00:41.5]} 42... Ra1+ {[%clk
0:00:50.6]} 43. Kg2 {[%clk 0:00:37.6]} 43... a3 {[%clk 0:00:51.1]} 44. c7 {[%clk
0:00:38.2]} 44... Rc1 {[%clk 0:00:50.8]} 45. Ba4 {[%clk 0:00:34.3]} 45... Rxc7
{[%clk 0:00:50]} 46. Bb3 {[%clk 0:00:34.7]} 0-1

[Event "Early-Titled-Tuesday-Blitz-February-13-2024"]
[Site "Chess.com"]
[Date "2024.02.13"]
[Round "9"]
[White "PedroGil25"]
[Black "aghasiyevkamal"]
[Result "0-1"]
[WhiteElo "2441"]
[BlackElo "2628"]
[TimeControl "180+1"]
[EndTime "9:47:44 PST"]
[Termination "aghasiyevkamal won by checkmate"]

1. e4 {[%clk 0:03:00.9]} 1... e5 {[%clk 0:02:58.4]} 2. Nf3 {[%clk 0:03:00.2]}
2... Nc6 {[%clk 0:02:57]} 3. Nc3 {[%clk 0:02:59.3]} 3... Nf6 {[%clk 0:02:55.9]}
4. Bb5 {[%clk 0:02:58.3]} 4... Nd4 {[%clk 0:02:48.8]} 5. Bc4 {[%clk 0:02:56.5]}
5... Bc5 {[%clk 0:02:45]} 6. d3 {[%clk 0:02:55.8]} 6... d6 {[%clk 0:02:40.6]} 7.
Nxd4 {[%clk 0:02:55.6]} 7... Bxd4 {[%clk 0:02:39.4]} 8. h3 {[%clk 0:02:55.8]}
8... c6 {[%clk 0:02:36.1]} 9. Bb3 {[%clk 0:02:52.9]} 9... O-O {[%clk 0:02:32.7]}
10. O-O {[%clk 0:02:49.6]} 10... h6 {[%clk 0:02:17]} 11. Ne2 {[%clk 0:02:47.7]}
11... Bb6 {[%clk 0:02:14]} 12. Ng3 {[%clk 0:02:48]} 12... a5 {[%clk 0:02:07.9]}
13. a4 {[%clk 0:02:47.1]} 13... Be6 {[%clk 0:02:08.1]} 14. Bxe6 {[%clk 0:02:46]}
14... fxe6 {[%clk 0:02:08.2]} 15. c3 {[%clk 0:02:46.4]} 15... Qe8 {[%clk
0:02:07.2]} 16. Qb3 {[%clk 0:02:44.8]} 16... Bc5 {[%clk 0:01:52.6]} 17. Be3
{[%clk 0:02:32.6]} 17... b6 {[%clk 0:01:42.9]} 18. d4 {[%clk 0:02:26.8]} 18...
exd4 {[%clk 0:01:42.2]} 19. cxd4 {[%clk 0:02:27.7]} 19... Bb4 {[%clk 0:01:42.4]}
20. f4 {[%clk 0:02:07.6]} 20... d5 {[%clk 0:01:39.4]} 21. e5 {[%clk 0:02:06.9]}
21... Nh5 {[%clk 0:01:35.8]} 22. Nxh5 {[%clk 0:01:57.8]} 22... Qxh5 {[%clk
0:01:34.5]} 23. Qc2 {[%clk 0:01:58.3]} 23... c5 {[%clk 0:01:31.1]} 24. Qf2
{[%clk 0:01:51.7]} 24... cxd4 {[%clk 0:01:20.5]} 25. Bxd4 {[%clk 0:01:52.6]}
25... Rac8 {[%clk 0:01:19.7]} 26. Rac1 {[%clk 0:01:51.9]} 26... Qf5 {[%clk
0:01:14.6]} 27. Qe3 {[%clk 0:01:26.6]} 27... Rxc1 {[%clk 0:00:52.9]} 28. Qxc1
{[%clk 0:01:27.5]} 28... Qd3 {[%clk 0:00:41.5]} 29. Qe3 {[%clk 0:01:25.9]} 29...
Qc2 {[%clk 0:00:34.5]} 30. Bxb6 {[%clk 0:01:18.2]} 30... Qxb2 {[%clk 0:00:23.3]}
31. Bd4 {[%clk 0:01:17.1]} 31... Qc2 {[%clk 0:00:22]} 32. Rc1 {[%clk 0:01:06.5]}
32... Qxa4 {[%clk 0:00:21.1]} 33. Rc7 {[%clk 0:01:07.1]} 33... Qd1+ {[%clk
0:00:19.9]} 34. Kh2 {[%clk 0:01:05.4]} 34... Bd2 {[%clk 0:00:19.6]} 35. Qf2
{[%clk 0:00:46.8]} 35... Bxf4+ {[%clk 0:00:18.1]} 36. g3 {[%clk 0:00:46.6]}
36... Bxe5 {[%clk 0:00:11.1]} 37. Rxg7+ {[%clk 0:00:46]} 37... Bxg7 {[%clk
0:00:10.3]} 38. Be5 {[%clk 0:00:46.5]} 38... Rxf2# {[%clk 0:00:09.7]} 0-1

[Event "Early-Titled-Tuesday-Blitz-February-13-2024"]
[Site "Chess.com"]
[Date "2024.02.13"]
[Round "9"]
[White "Hilary46"]
[Black "Helenita13"]
[Result "1-0"]
[WhiteElo "2621"]
[BlackElo "2337"]
[TimeControl "180+1"]
[EndTime "9:47:45 PST"]
[Termination "Hilary46 won by resignation"]

1. Nf3 {[%clk 0:03:00.9]} 1... Nf6 {[%clk 0:02:59.3]} 2. c4 {[%clk 0:02:58.8]}
2... e6 {[%clk 0:02:57.2]} 3. d4 {[%clk 0:02:40]} 3... Bb4+ {[%clk 0:02:54]} 4.
Bd2 {[%clk 0:02:37.4]} 4... a5 {[%clk 0:02:52.4]} 5. a3 {[%clk 0:02:31.8]} 5...
Bxd2+ {[%clk 0:02:51.6]} 6. Qxd2 {[%clk 0:02:32.7]} 6... O-O {[%clk 0:02:49.1]}
7. Nc3 {[%clk 0:02:32.2]} 7... d6 {[%clk 0:02:46.6]} 8. e4 {[%clk 0:02:32]} 8...
Qe7 {[%clk 0:02:46.2]} 9. Bd3 {[%clk 0:02:31.1]} 9... e5 {[%clk 0:02:46.5]} 10.
d5 {[%clk 0:02:30.2]} 10... Bg4 {[%clk 0:02:46.4]} 11. Be2 {[%clk 0:02:26.9]}
11... Na6 {[%clk 0:02:43.1]} 12. O-O {[%clk 0:02:24.9]} 12... Nc5 {[%clk
0:02:42.3]} 13. Qe3 {[%clk 0:02:24.1]} 13... a4 {[%clk 0:02:39.7]} 14. h3 {[%clk
0:02:19.6]} 14... Bxf3 {[%clk 0:02:39.2]} 15. Bxf3 {[%clk 0:02:20.1]} 15... Nfd7
{[%clk 0:02:30.5]} 16. Bd1 {[%clk 0:02:18.1]} 16... g6 {[%clk 0:02:26.1]} 17.
Bc2 {[%clk 0:02:14.4]} 17... Nf6 {[%clk 0:02:09.6]} 18. Rae1 {[%clk 0:02:11.6]}
18... Nh5 {[%clk 0:02:09.3]} 19. g3 {[%clk 0:02:03.4]} 19... Qd7 {[%clk
0:02:08.3]} 20. Kg2 {[%clk 0:02:01.7]} 20... Ng7 {[%clk 0:02:07.1]} 21. f4
{[%clk 0:02:01.1]} 21... f6 {[%clk 0:02:02.7]} 22. f5 {[%clk 0:01:56.1]} 22...
g5 {[%clk 0:01:58.2]} 23. Rh1 {[%clk 0:01:52.8]} 23... h6 {[%clk 0:01:55.3]} 24.
Qe2 {[%clk 0:01:49.4]} 24... Kf7 {[%clk 0:01:45.6]} 25. h4 {[%clk 0:01:48.9]}
25... Rh8 {[%clk 0:01:45.5]} 26. hxg5 {[%clk 0:01:48.4]} 26... hxg5 {[%clk
0:01:46.4]} 27. Rxh8 {[%clk 0:01:32.1]} 27... Rxh8 {[%clk 0:01:47.3]} 28. Qd1
{[%clk 0:01:32.4]} 28... Qd8 {[%clk 0:01:26.8]} 29. Bxa4 {[%clk 0:01:26.6]}
29... Nxa4 {[%clk 0:01:24.8]} 30. Qxa4 {[%clk 0:01:25.7]} 30... Ke7 {[%clk
0:01:12.3]} 31. Qa7 {[%clk 0:01:20.7]} 31... b6 {[%clk 0:01:10]} 32. Nb5 {[%clk
0:01:20.1]} 32... Ne8 {[%clk 0:01:03.9]} 33. Rh1 {[%clk 0:01:15.8]} 33... Rxh1
{[%clk 0:01:01.7]} 34. Kxh1 {[%clk 0:01:16.7]} 34... Kd7 {[%clk 0:01:02.3]} 35.
Kg2 {[%clk 0:01:07.2]} 35... g4 {[%clk 0:00:59.1]} 36. Qb7 {[%clk 0:00:59.5]}
36... Qc8 {[%clk 0:00:50.1]} 37. Qxc8+ {[%clk 0:00:55.2]} 37... Kxc8 {[%clk
0:00:50]} 38. Nc3 {[%clk 0:00:55.5]} 38... c6 {[%clk 0:00:36.6]} 39. Nd1 {[%clk
0:00:51.3]} 39... Nc7 {[%clk 0:00:28]} 40. Ne3 {[%clk 0:00:50.6]} 40... Na6
{[%clk 0:00:28.2]} 41. Nxg4 {[%clk 0:00:47.8]} 41... Nc5 {[%clk 0:00:28.3]} 42.
Nxf6 {[%clk 0:00:47.6]} 1-0

[Event "Early-Titled-Tuesday-Blitz-February-13-2024"]
[Site "Chess.com"]
[Date "2024.02.13"]
[Round "9"]
[White "arnash_bauyrzhan"]
[Black "Gzucaritas"]
[Result "1-0"]
[WhiteElo "2249"]
[BlackElo "2045"]
[TimeControl "180+1"]
[EndTime "9:47:48 PST"]
[Termination "arnash_bauyrzhan won by resignation"]

1. e4 {[%clk 0:03:00.9]} 1... e6 {[%clk 0:02:57.4]} 2. d4 {[%clk 0:03:00.4]}
2... d5 {[%clk 0:02:57.1]} 3. Nd2 {[%clk 0:03:00.3]} 3... Nf6 {[%clk 0:02:52.4]}
4. e5 {[%clk 0:03:00.2]} 4... Nfd7 {[%clk 0:02:52.3]} 5. Bd3 {[%clk 0:02:59.9]}
5... c5 {[%clk 0:02:51.2]} 6. c3 {[%clk 0:03:00.3]} 6... Nc6 {[%clk 0:02:50.8]}
7. Ne2 {[%clk 0:03:00.5]} 7... f6 {[%clk 0:02:41]} 8. exf6 {[%clk 0:02:59.2]}
8... Nxf6 {[%clk 0:02:40.1]} 9. O-O {[%clk 0:02:54.9]} 9... Bd6 {[%clk
0:02:31.5]} 10. Nf3 {[%clk 0:02:54.5]} 10... O-O {[%clk 0:02:29.9]} 11. Bf4
{[%clk 0:02:54.2]} 11... cxd4 {[%clk 0:02:14.4]} 12. cxd4 {[%clk 0:02:50.3]}
12... Bxf4 {[%clk 0:01:51]} 13. Nxf4 {[%clk 0:02:50.1]} 13... Bd7 {[%clk
0:01:50.5]} 14. Rc1 {[%clk 0:02:37.3]} 14... Ng4 {[%clk 0:01:48.7]} 15. Nh3
{[%clk 0:02:26.3]} 15... e5 {[%clk 0:01:33.1]} 16. dxe5 {[%clk 0:02:15.2]} 16...
Ncxe5 {[%clk 0:01:18.3]} 17. Nxe5 {[%clk 0:02:12.2]} 17... Nxe5 {[%clk
0:01:18.7]} 18. Bxh7+ {[%clk 0:02:08.1]} 18... Kxh7 {[%clk 0:01:14.5]} 19. Qh5+
{[%clk 0:02:06.8]} 19... Kg8 {[%clk 0:01:14]} 20. Qxe5 {[%clk 0:01:36.8]} 20...
Bxh3 {[%clk 0:01:07.6]} 21. gxh3 {[%clk 0:01:37]} 21... Rf5 {[%clk 0:01:03.6]}
22. Qxf5 {[%clk 0:01:33.7]} 22... Qh4 {[%clk 0:00:53.2]} 23. Qxd5+ {[%clk
0:01:22.7]} 23... Kh8 {[%clk 0:00:52.3]} 24. Rc4 {[%clk 0:01:18.6]} 24... Qxh3
{[%clk 0:00:48.7]} 25. Qg5 {[%clk 0:01:12.6]} 25... Kg8 {[%clk 0:00:45.2]} 26.
Rh4 {[%clk 0:01:07.5]} 26... Qf3 {[%clk 0:00:43.3]} 27. Rg4 {[%clk 0:01:05.8]}
27... Qf7 {[%clk 0:00:39.9]} 28. Re1 {[%clk 0:00:58.6]} 28... Rf8 {[%clk
0:00:38.7]} 29. f4 {[%clk 0:00:50.5]} 29... Rc8 {[%clk 0:00:33]} 30. Re7 {[%clk
0:00:29.2]} 30... Rc1+ {[%clk 0:00:29.8]} 31. Kg2 {[%clk 0:00:29.3]} 31... Qd5+
{[%clk 0:00:26.7]} 32. Qxd5+ {[%clk 0:00:28.3]} 1-0